bitfinex-derivatives/quotes_BNBF0:USTF0_20230831
["timestamp","ask_amount","ask_price","bid_price","bid_amount"]
[1693510625583,0.07515982,217.43,217.14,0.18387413]
[1693510625788,0.07515982,217.43,217.15,0.18385128]
[1693510626091,0.07515982,217.44,217.16,0.18385128]
[1693510626291,0.07515982,217.44,217.13,0.18385128]
[1693510626493,0.07515982,217.44,217.14,0.18385128]
[1693510626792,0.07515982,217.44,217.15,0.18385128]
[1693510626986,0.07515982,217.44,217.13,0.18385128]
[1693510627185,0.07515982,217.44,217.14,0.18385128]
[1693510627385,0.07515982,217.44,217.12,0.18385128]
[1693510627589,0.07515982,217.44,217.13,0.18385128]
[1693510627785,0.07515982,217.44,217.14,0.18385128]
[1693510627990,0.07515982,217.45,217.15,0.18385128]
[1693510628189,0.07515982,217.45,217.16,0.18385128]
[1693510628391,0.07515982,217.45,217.12,0.18385128]
[1693510628692,0.07515982,217.45,217.13,0.18385128]
[1693510628886,0.07515982,217.45,217.12,0.18385128]
[1693510629089,0.07515982,217.45,217.13,0.18385128]
[1693510629287,0.07515982,217.45,217.14,0.18385128]
[1693510629486,0.07515982,217.45,217.15,0.18385128]
[1693510629694,0.07515982,217.45,217.16,0.18385128]
[1693510629894,0.07515982,217.45,217.11,0.18385128]
[1693510630092,0.07515982,217.45,217.12,0.18385128]
[1693510630289,0.07515982,217.45,217.11,0.18385128]
[1693510630493,0.07515982,217.45,217.12,0.18385128]
[1693510630694,0.07515982,217.45,217.13,0.18385128]
[1693510630894,0.07515982,217.46,217.14,0.18385128]
[1693510631195,0.07515982,217.46,217.15,0.18385128]
[1693510631394,0.07515982,217.46,217.11,0.18385128]
[1693510632097,0.07515982,217.47,217.11,0.18385128]
[1693510632292,0.07515982,217.47,217.11,0.25872526]
[1693510632494,0.07515982,217.47,217.12,0.18385128]
[1693510632797,0.07515982,217.46,217.12,0.18385128]
[1693510633096,0.07515982,217.47,217.13,0.18385128]
[1693510633294,0.07515982,217.47,217.14,0.18385128]
[1693510633495,0.07515982,217.47,217.11,0.18385128]
[1693510633799,0.07515982,217.47,217.12,0.18385128]
[1693510633995,0.07515982,217.47,217.13,0.18385128]
[1693510634296,0.07515982,217.47,217.14,0.18385128]
[1693510634492,0.07515982,217.47,217.11,0.18385128]
[1693510634799,0.07515982,217.46,217.12,0.18385128]
[1693510634991,0.07515982,217.47,217.13,0.18385128]
[1693510635196,0.07515982,217.47,217.14,0.18385128]
[1693510635396,0.07515982,217.47,217.15,0.18385128]
[1693510635596,0.07515982,217.47,217.11,0.18385128]
[1693510635797,0.07515982,217.46,217.12,0.18385128]
[1693510636096,0.07515982,217.46,217.13,0.18385128]
[1693510636297,0.07515982,217.46,217.14,0.18385128]
[1693510636498,0.07515982,217.46,217.15,0.18385128]
[1693510636699,0.07515982,217.46,217.11,0.18385128]
[1693510636890,0.07515982,217.46,217.12,0.18385128]
[1693510637095,0.07515982,217.46,217.13,0.18385128]
[1693510637397,0.07515982,217.46,217.14,0.18385128]
[1693510637598,0.07515982,217.46,217.1,0.18385128]
[1693510637798,0.07515982,217.46,217.11,0.18385128]
[1693510637998,0.07515982,217.46,217.12,0.18385128]
[1693510638297,0.07515982,217.46,217.13,0.18385128]
[1693510638497,0.07515982,217.46,217.14,0.18385128]
[1693510638699,0.07515982,217.46,217.15,0.18385128]
[1693510638896,0.07515982,217.46,217.16,0.18385128]
[1693510639197,0.07515982,217.46,217.17,0.18385128]
[1693510639398,0.07515982,217.46,217.18,0.18385128]
[1693510639591,0.07515982,217.46,217.1,0.18385128]
[1693510639897,0.07515982,217.46,217.11,0.18385128]
[1693510640100,0.07515982,217.46,217.1,0.25872526]
[1693510640298,0.07515982,217.46,217.11,0.18385128]
[1693510642900,0.07515982,217.45,217.11,0.18385128]
[1693510645901,0.07515982,217.46,217.11,0.18385128]
[1693510646205,0.07515982,217.45,217.11,0.25872526]
[1693510646398,0.07515982,217.45,217.12,0.18385128]
[1693510648201,0.07515982,217.45,217.12,0.25872526]
[1693510648399,0.07515982,217.45,217.13,0.18385128]
[1693510649909,0.07515982,217.44,217.13,0.18385128]
[1693510651009,0.07515982,217.44,217.13,0.25872526]
[1693510651209,0.07515982,217.44,217.14,0.18385128]
[1693510653111,0.07515982,217.43,217.14,0.25872526]
[1693510653306,0.07515982,217.43,217.15,0.18385128]
[1693510654108,0.07515982,217.42,217.15,0.25872526]
[1693510654306,0.07515982,217.42,217.16,0.18385128]
[1693510654907,0.07515982,217.41,217.16,0.25872526]
[1693510655109,0.07515982,217.41,217.17,0.18385128]
[1693510657314,0.07515982,217.39,217.18,0.07487398]
[1693510657515,0.07515982,217.39,217.19,0.18385128]
[1693510658618,0.07515982,217.39,217.18,0.07487398]
[1693510658817,0.07515982,217.39,217.19,0.18395252]
[1693510662024,0.07515982,217.46,217.22,0.07487398]
[1693510662220,0.07515982,217.46,217.23,0.18395252]
[1693510663023,0.07515982,217.47,217.23,0.18395252]
[1693510663223,0.07515982,217.47,217.24,0.18395252]
[1693510663422,0.07515982,217.47,217.25,0.18395252]
[1693510663618,0.07515982,217.47,217.21,0.07487398]
[1693510663925,0.07515982,217.47,217.22,0.18349804]
[1693510664127,0.07515982,217.48,217.22,0.18349804]
[1693510664428,0.07515982,217.48,217.23,0.18349804]
[1693510664625,0.07515982,217.48,217.24,0.18349804]
[1693510664826,0.07515982,217.48,217.25,0.18349804]
[1693510665027,0.07515982,217.48,217.2,0.07487398]
[1693510665329,0.07515982,217.48,217.21,0.18349597]
[1693510665829,0.07515982,217.49,217.21,0.18349597]
[1693510667129,0.07515982,217.5,217.21,0.18349597]
[1693510667331,0.07515982,217.5,217.22,0.18349597]
[1693510667630,0.07515982,217.5,217.23,0.18349597]
[1693510667832,0.07515982,217.5,217.2,0.18349597]
[1693510668031,0.07515982,217.5,217.21,0.18349597]
[1693510668227,0.07515982,217.5,217.2,0.18349597]
[1693510668432,0.07515982,217.5,217.21,0.18349597]
[1693510668633,0.07515982,217.5,217.22,0.18349597]
[1693510668833,0.07515982,217.5,217.23,0.18349597]
[1693510669133,0.07515982,217.51,217.24,0.18349597]
[1693510669334,0.07515982,217.51,217.25,0.18349597]
[1693510669531,0.07515982,217.51,217.19,0.25836995]
[1693510669730,0.07515982,217.51,217.2,0.18349597]
[1693510670435,0.07515982,217.51,217.21,0.18349597]
[1693510670636,0.07515982,217.51,217.22,0.18349597]
[1693510670838,0.07515982,217.51,217.18,0.07487398]
[1693510670839,0.07515982,217.51,217.23,0.18349597]
[1693510671037,0.07515982,217.51,217.24,0.18349597]
[1693510671237,0.07515982,217.51,217.19,0.18349597]
[1693510671436,0.07515982,217.51,217.2,0.18349597]
[1693510671638,0.07515982,217.51,217.19,0.18349597]
[1693510671934,0.07515982,217.51,217.2,0.18349597]
[1693510672142,0.07515982,217.51,217.18,0.18349597]
[1693510672439,0.07515982,217.51,217.19,0.18349597]
[1693510672633,0.07515982,217.51,217.18,0.18349597]
[1693510672837,0.07515982,217.51,217.19,0.18349597]
[1693510673036,0.07515982,217.51,217.18,0.18349597]
[1693510673332,0.07515982,217.51,217.19,0.18349597]
[1693510673537,0.07515982,217.51,217.18,0.18349597]
[1693510673735,0.07515982,217.51,217.19,0.18349597]
[1693510674034,0.07515982,217.51,217.17,0.07487398]
[1693510674035,0.07515982,217.51,217.2,0.18349597]
[1693510674340,0.07515982,217.51,217.21,0.18349597]
[1693510674541,0.07515982,217.51,217.22,0.18349597]
[1693510674741,0.07515982,217.51,217.23,0.18349597]
[1693510674936,0.07515982,217.51,217.18,0.18349597]
[1693510675141,0.07515982,217.52,217.19,0.18349597]
[1693510675445,0.07515982,217.52,217.2,0.18349597]
[1693510675642,0.07515982,217.52,217.21,0.18349597]
[1693510675843,0.07515982,217.52,217.22,0.18349597]
[1693510676045,0.07515982,217.52,217.23,0.18349597]
[1693510676241,0.07515982,217.52,217.18,0.18349597]
[1693510676445,0.07515982,217.52,217.19,0.18349597]
[1693510676647,0.07515982,217.51,217.18,0.18349597]
[1693510676845,0.07515982,217.51,217.17,0.07487398]
[1693510676846,0.07515982,217.5,217.19,0.18349597]
[1693510677049,0.07515982,217.51,217.2,0.18349597]
[1693510677245,0.07515982,217.51,217.21,0.18349597]
[1693510677443,0.07515982,217.51,217.22,0.18349597]
[1693510677638,0.07515982,217.5,217.17,0.18349597]
[1693510677841,0.07515982,217.5,217.18,0.18349597]
[1693510678041,0.07515982,217.5,217.17,0.18349597]
[1693510678240,0.07515982,217.5,217.18,0.18349597]
[1693510678447,0.07515982,217.46,217.19,0.18349597]
[1693510678648,0.07515982,217.45,217.1,0.07487398]
[1693510678959,0.07515982,217.45,217.11,0.18386345]
[1693510680349,0.07515982,217.44,217.11,0.18386345]
[1693510681147,0.07515982,217.45,217.11,0.25873743]
[1693510681345,0.07515982,217.45,217.12,0.18386345]
[1693510681746,0.07515982,217.46,217.12,0.18386345]
[1693510682248,0.07515982,217.46,217.12,0.25873743]
[1693510682445,0.07515982,217.46,217.13,0.18386345]
[1693510683142,0.07515982,217.46,217.12,0.18386345]
[1693510683347,0.07515982,217.46,217.13,0.18386345]
[1693510683547,0.07515982,217.46,217.14,0.18386345]
[1693510683748,0.07515982,217.46,217.15,0.18386345]
[1693510683944,0.07515982,217.46,217.12,0.18386345]
[1693510684148,0.07515982,217.46,217.13,0.18386345]
[1693510684349,0.07515982,217.45,217.12,0.18386345]
[1693510684651,0.07515982,217.45,217.13,0.18386345]
[1693510684851,0.07515982,217.45,217.12,0.18386345]
[1693510685044,0.07515982,217.45,217.13,0.18386345]
[1693510685248,0.07515982,217.45,217.12,0.18386345]
[1693510685445,0.07515982,217.46,217.13,0.18386345]
[1693510685651,0.07515982,217.46,217.12,0.18386345]
[1693510685846,0.07515982,217.46,217.13,0.18386345]
[1693510686045,0.07515982,217.46,217.12,0.18386345]
[1693510686349,0.07515982,217.45,217.13,0.18386345]
[1693510686551,0.07515982,217.45,217.12,0.18386345]
[1693510686752,0.07515982,217.45,217.13,0.18386345]
[1693510686949,0.15031964,217.47,217.1,0.07487398]
[1693510686950,0.07515982,217.44,217.11,0.18386345]
[1693510687150,0.07515982,217.44,217.12,0.18386345]
[1693510687349,0.07515982,217.44,217.11,0.18386345]
[1693510687550,0.07515982,217.45,217.12,0.18386345]
[1693510687750,0.07515982,217.44,217.11,0.18386345]
[1693510687951,0.07515982,217.44,217.12,0.18386345]
[1693510688155,0.07515982,217.44,217.1,0.18386345]
[1693510688450,0.07515982,217.45,217.11,0.18386345]
[1693510689049,0.07515982,217.46,217.11,0.18386345]
[1693510689249,0.07515982,217.46,217.11,0.25873743]
[1693510689449,0.07515982,217.46,217.12,0.18386345]
[1693510689845,0.07515982,217.47,217.12,0.25873743]
[1693510690045,0.07515982,217.47,217.13,0.18386345]
[1693510692753,0.07515982,217.47,217.13,0.18386345]
[1693510695252,0.07515982,217.46,217.13,0.18386345]
[1693510695453,0.07515982,217.46,217.14,0.18386345]
[1693510695648,0.07515982,217.46,217.15,0.18386345]
[1693510695849,0.07515982,217.46,217.16,0.18386345]
[1693510696051,0.07515982,217.46,217.17,0.18386345]
[1693510696252,0.07515982,217.46,217.12,0.18386345]
[1693510696453,0.07515982,217.46,217.13,0.18386345]
[1693510696755,0.07515982,217.46,217.14,0.18386345]
[1693510696954,0.07515982,217.46,217.15,0.18386345]
[1693510697155,0.07515982,217.46,217.16,0.18386345]
[1693510697455,0.07515982,217.46,217.17,0.18386345]
[1693510697659,0.07515982,217.46,217.09,0.07487398]
[1693510697660,0.07515982,217.44,217.09,0.07487398]
[1693510697950,0.07515982,217.44,217.1,0.18384207]
[1693510698753,0.07515982,217.44,217.11,0.18384207]
[1693510699049,0.07515982,217.44,217.12,0.18384207]
[1693510699254,0.07515982,217.44,217.09,0.25871605]
[1693510699449,0.07515982,217.44,217.1,0.18384207]
[1693510699848,0.07515982,217.44,217.11,0.18384207]
[1693510700053,0.07515982,217.44,217.12,0.18384207]
[1693510700354,0.07515982,217.44,217.13,0.18384207]
[1693510700555,0.07515982,217.44,217.09,0.18384207]
[1693510700750,0.07515982,217.44,217.1,0.18384207]
[1693510700955,0.07515982,217.44,217.11,0.18384207]
[1693510701155,0.07515982,217.44,217.12,0.18384207]
[1693510701350,0.07515982,217.44,217.09,0.18384207]
[1693510701555,0.07515982,217.44,217.1,0.18384207]
[1693510701756,0.07515982,217.44,217.11,0.18384207]
[1693510701955,0.07515982,217.44,217.12,0.18384207]
[1693510702250,0.07515982,217.44,217.13,0.18384207]
[1693510702448,0.07515982,217.44,217.08,0.07487398]
[1693510702449,0.07515982,217.44,217.09,0.18384207]
[1693510702653,0.07515982,217.44,217.1,0.18384207]
[1693510702853,0.07515982,217.44,217.11,0.18384207]
[1693510703051,0.07515982,217.44,217.12,0.18384207]
[1693510703255,0.07515982,217.44,217.1,0.18384207]
[1693510703456,0.07515982,217.44,217.11,0.18384207]
[1693510703659,0.07515982,217.44,217.1,0.18384207]
[1693510703857,0.07515982,217.44,217.11,0.18384207]
[1693510704058,0.07515982,217.44,217.12,0.18384207]
[1693510704257,0.07515982,217.44,217.13,0.18384207]
[1693510704456,0.07515982,217.44,217.09,0.07487398]
[1693510704457,0.07515982,217.44,217.14,0.18384207]
[1693510704656,0.07515982,217.44,217.1,0.18384207]
[1693510704856,0.07515982,217.44,217.11,0.18384207]
[1693510705051,0.07515982,217.44,217.12,0.18384207]
[1693510705253,0.07515982,217.44,217.13,0.18384207]
[1693510705456,0.07515982,217.44,217.14,0.18384207]
[1693510705658,0.07515982,217.44,217.1,0.18384207]
[1693510705856,0.07515982,217.43,217.11,0.18384207]
[1693510708560,0.07515982,217.42,217.11,0.18384207]
[1693510710061,0.50106546,217.47,217.11,0.18384207]
[1693510710062,0.07515982,217.41,217.11,0.25871605]
[1693510710261,0.07515982,217.42,217.12,0.18384207]
[1693510710462,0.07515982,217.42,217.12,0.25871605]
[1693510710663,0.07515982,217.42,217.13,0.18384207]
[1693510711056,0.07515982,217.41,217.13,0.18384207]
[1693510712061,0.07515982,217.4,217.13,0.25871605]
[1693510712256,0.07515982,217.4,217.14,0.18384207]
[1693510712962,0.07515982,217.39,217.14,0.25871605]
[1693510713163,0.07515982,217.39,217.15,0.18384207]
[1693510718568,0.07515982,217.4,217.15,0.25871605]
[1693510718867,0.07515982,217.39,217.16,0.18384207]
[1693510720569,0.07515982,217.39,217.17,0.18384207]
[1693510720871,0.07515982,217.39,217.18,0.18384207]
[1693510721064,0.07515982,217.39,217.16,0.18384207]
[1693510721266,0.07515982,217.39,217.17,0.18386895]
[1693510721462,0.07515982,217.39,217.18,0.18386895]
[1693510721665,0.07515982,217.39,217.15,0.07487398]
[1693510721866,0.07515982,217.39,217.16,0.18386954]
[1693510722570,0.07515982,217.4,217.16,0.18386954]
[1693510725473,0.07515982,217.4,217.16,0.25874352]
[1693510725671,0.07515982,217.4,217.17,0.18386954]
[1693510729673,0.07515982,217.39,217.17,0.18386954]
[1693510730172,0.07515982,217.4,217.17,0.25874352]
[1693510730374,0.07515982,217.4,217.18,0.18386954]
[1693510730875,0.07515982,217.39,217.18,0.18386954]
[1693510732369,0.07515982,217.39,216.93,0.99831977]
[1693510732370,0.07515982,217.38,217.17,0.18386954]
[1693510732574,0.07515982,217.37,217.15,0.07487398]
[1693510732773,0.07515982,217.37,217.16,0.18392553]
[1693510738980,0.07515982,217.37,217.15,0.18392553]
[1693510739183,0.07515982,217.37,217.16,0.18392553]
[1693510739382,0.07515982,217.37,217.15,0.18392553]
[1693510739574,0.07515982,217.37,217.16,0.18392553]
[1693510739779,0.07515982,217.37,217.15,0.18392553]
[1693510739981,0.07515982,217.37,217.16,0.18392553]
[1693510740181,0.07515982,217.37,217.15,0.18392553]
[1693510740481,0.07515982,217.37,217.16,0.18392553]
[1693510740673,0.07515982,217.37,217.15,0.18392553]
[1693510740874,0.07515982,217.37,217.16,0.18392553]
[1693510741082,0.07515982,217.37,217.17,0.18392553]
[1693510741283,0.07515982,217.37,217.14,0.07487398]
[1693510741484,0.07515982,217.37,217.15,0.18398045]
[1693510745590,0.07515982,217.38,217.15,0.18398045]
[1693510748685,0.07515982,217.38,217.15,0.25885443]
[1693510748886,0.07515982,217.38,217.16,0.18398045]
[1693510749594,0.07515982,217.38,217.17,0.18398045]
[1693510749787,0.07515982,217.38,217.14,0.07487398]
[1693510749992,0.07515982,217.38,217.15,0.18398866]
[1693510751795,0.07515982,217.38,217.15,0.25886264]
[1693510751995,0.07515982,217.38,217.16,0.18398866]
[1693510755497,0.07515982,217.39,217.16,0.18398866]
[1693510757798,0.07515982,217.38,217.16,0.18398866]
[1693510763197,0.07515982,217.38,217.16,0.25886264]
[1693510763396,0.07515982,217.38,217.17,0.18398866]
[1693510765597,1.00213093,217.45,217.17,0.18398866]
[1693510765598,0.07515982,217.37,217.17,0.18398866]
[1693510773301,0.07515982,217.36,217.17,0.18398866]
[1693510775807,0.07515982,217.37,217.17,0.18398866]
[1693510776004,0.07515982,217.36,217.17,0.18398866]
[1693510778408,0.07515982,217.37,217.17,0.18398866]
[1693510778610,0.07515982,217.36,217.17,0.18398866]
[1693510779311,0.07515982,217.37,217.17,0.18398866]
[1693510779512,0.07515982,217.36,217.17,0.18398866]
[1693510783913,0.07515982,217.37,217.17,0.18398866]
[1693510784117,0.07515982,217.36,217.17,0.18398866]
[1693510786319,0.07515982,217.37,217.17,0.18398866]
[1693510792416,0.07515982,217.37,217.17,0.25886264]
[1693510792620,0.07515982,217.37,217.18,0.18398866]
[1693510798924,0.07515982,217.37,217.18,0.18398866]
[1693510805222,0.07515982,217.38,217.18,0.18398866]
[1693510806424,0.07515982,217.39,217.18,0.25886264]
[1693510806626,0.07515982,217.39,217.11,0.14974796]
[1693510806627,0.07515982,217.43,217.22,0.07487398]
[1693510806925,0.07515982,217.44,217.23,0.18398866]
[1693510807127,0.07515982,217.44,217.23,0.25886264]
[1693510807424,0.07515982,217.46,217.24,0.18398866]
[1693510807627,0.07515982,217.46,217.21,0.07487398]
[1693510807830,0.07515982,217.46,217.22,0.18376232]
[1693510808029,0.07515982,217.46,217.23,0.18376232]
[1693510808228,0.07515982,217.47,217.24,0.18376232]
[1693510808426,0.07515982,217.47,217.2,0.18376232]
[1693510808626,0.07515982,217.47,217.19,0.07487398]
[1693510808627,0.07515982,217.47,217.21,0.18376705]
[1693510808929,0.07515982,217.47,217.22,0.18376705]
[1693510809229,0.07515982,217.47,217.23,0.18376705]
[1693510809429,0.07515982,217.48,217.24,0.18376705]
[1693510809629,0.07515982,217.48,217.18,0.07487398]
[1693510809929,0.07515982,217.48,217.19,0.18375087]
[1693510811430,0.07515982,217.49,217.19,0.18375087]
[1693510811626,0.07515982,217.49,217.2,0.18375087]
[1693510811828,0.07515982,217.49,217.17,0.07487398]
[1693510811829,0.07515982,217.49,217.21,0.18375087]
[1693510812029,0.07515982,217.49,217.22,0.18375087]
[1693510812226,0.07515982,217.49,217.23,0.18375087]
[1693510812428,0.07515982,217.49,217.18,0.18375087]
[1693510812631,0.07515982,217.49,217.19,0.18375087]
[1693510812931,0.07515982,217.5,217.2,0.18375087]
[1693510813132,0.07515982,217.5,217.19,0.18375087]
[1693510813431,0.07515982,217.51,217.2,0.18375087]
[1693510813630,0.07515982,217.51,217.21,0.18375087]
[1693510813830,0.07515982,217.51,217.18,0.18375087]
[1693510814032,0.07515982,217.51,217.19,0.18375087]
[1693510814333,0.07515982,217.51,217.2,0.18375087]
[1693510814526,0.07515982,217.51,217.21,0.18375087]
[1693510814725,0.07515982,217.51,217.22,0.18375087]
[1693510814929,0.07515982,217.51,217.23,0.18375087]
[1693510815130,0.07515982,217.51,217.24,0.18375087]
[1693510815330,0.07515982,217.51,217.25,0.18375087]
[1693510815626,0.07515982,217.51,217.16,0.07487398]
[1693510815826,0.07515982,217.51,217.17,0.18370268]
[1693510817826,0.07515982,217.51,217.16,0.18370268]
[1693510818030,0.07515982,217.51,217.17,0.18370268]
[1693510818230,0.07515982,217.51,217.18,0.18370268]
[1693510818431,0.15031964,217.54,217.19,0.18370268]
[1693510818432,0.07515982,217.52,217.19,0.18370268]
[1693510818632,0.07515982,217.52,217.16,0.18370268]
[1693510818833,0.07515982,217.52,217.17,0.18370268]
[1693510819032,0.07515982,217.52,217.16,0.18370268]
[1693510819332,0.07515982,217.52,217.17,0.18370268]
[1693510819533,0.07515982,217.52,217.16,0.18370268]
[1693510819733,0.07515982,217.52,217.17,0.18370268]
[1693510819932,0.07515982,217.52,217.15,0.07487398]
[1693510819933,0.07515982,217.52,217.16,0.18370268]
[1693510820130,0.07515982,217.52,217.17,0.18370268]
[1693510820330,0.07515982,217.52,217.16,0.18370268]
[1693510820528,0.07515982,217.52,217.17,0.18370268]
[1693510820729,0.07515982,217.52,217.16,0.18370268]
[1693510821033,0.07515982,217.52,217.0,0.49915988]
[1693510821034,0.07515982,217.51,217.17,0.18370268]
[1693510821233,0.07515982,217.51,217.18,0.18370268]
[1693510821438,0.07515982,217.46,217.15,0.18370268]
[1693510821636,0.07515982,217.45,217.16,0.18370268]
[1693510821937,0.07515982,217.46,217.17,0.18370268]
[1693510822130,0.07515982,217.46,217.1,0.18370268]
[1693510822335,0.07515982,217.45,217.11,0.18370268]
[1693510822534,0.07515982,217.46,217.12,0.18370268]
[1693510822734,0.07515982,217.46,217.1,0.18370268]
[1693510822938,0.07515982,217.46,217.11,0.18370268]
[1693510823236,0.07515982,217.45,217.12,0.18370268]
[1693510823431,0.07515982,217.45,217.13,0.18370268]
[1693510823630,0.07515982,217.45,217.14,0.18370268]
[1693510823830,0.07515982,217.45,217.1,0.18370268]
[1693510824029,0.07515982,217.45,217.11,0.18370268]
[1693510824227,0.07515982,217.45,217.12,0.18370268]
[1693510824428,0.07515982,217.45,217.13,0.18370268]
[1693510824729,0.07515982,217.45,217.14,0.18370268]
[1693510824934,0.07515982,217.45,217.09,0.07487398]
[1693510824935,0.07515982,217.45,217.1,0.18370268]
[1693510825136,0.07515982,217.45,217.11,0.18370268]
[1693510825333,0.07515982,217.45,217.1,0.18370268]
[1693510825531,0.07515982,217.45,217.11,0.18370268]
[1693510825733,0.07515982,217.45,217.12,0.18370268]
[1693510825934,0.07515982,217.45,217.13,0.18370268]
[1693510826236,0.07515982,217.45,217.14,0.18370268]
[1693510826435,0.07515982,217.45,217.1,0.18370268]
[1693510826635,0.07515982,217.45,217.11,0.18370268]
[1693510826830,0.07515982,217.45,217.1,0.18370268]
[1693510832134,0.07515982,217.44,217.1,0.18370268]
[1693510832337,0.07515982,217.44,217.08,0.07487398]
[1693510832338,0.07515982,217.44,217.09,0.18370268]
[1693510832539,0.07515982,217.44,217.1,0.18370268]
[1693510832739,0.07515982,217.44,217.11,0.18370268]
[1693510832941,0.07515982,217.44,217.12,0.18370268]
[1693510833137,0.07515982,217.44,217.13,0.18370268]
[1693510833339,0.07515982,217.44,217.14,0.18370268]
[1693510833539,0.07515982,217.44,217.15,0.18370268]
[1693510833741,0.07515982,217.44,217.16,0.18370268]
[1693510834040,0.07515982,217.44,217.17,0.18370268]
[1693510834240,0.07515982,217.44,217.09,0.07487398]
[1693510834241,0.07515982,217.44,217.1,0.18370268]
[1693510834434,0.07515982,217.44,217.11,0.18370268]
[1693510834637,0.07515982,217.44,217.1,0.18370268]
[1693510834841,0.07515982,217.44,217.11,0.18370268]
[1693510835041,0.07515982,217.44,217.09,0.07487398]
[1693510835042,0.07515982,217.44,217.1,0.18370268]
[1693510835237,0.07515982,217.44,217.11,0.18370268]
[1693510835434,0.07515982,217.44,217.1,0.18370268]
[1693510835740,0.07515982,217.44,217.11,0.18370268]
[1693510835941,0.07515982,217.44,217.1,0.18370268]
[1693510836141,0.07515982,217.44,217.11,0.18370268]
[1693510836444,0.07515982,217.44,217.12,0.18370268]
[1693510836645,0.07515982,217.44,217.1,0.18370268]
[1693510836842,0.07515982,217.44,217.11,0.18370268]
[1693510837044,0.07515982,217.44,217.12,0.18370268]
[1693510837246,0.07515982,217.44,217.13,0.18370268]
[1693510837545,0.07515982,217.44,217.14,0.18370268]
[1693510837741,0.07515982,217.44,217.1,0.18370268]
[1693510838143,0.07515982,217.45,217.1,0.18370268]
[1693510843046,0.07515982,217.45,217.1,0.25857666]
[1693510843245,0.07515982,217.45,217.11,0.18370268]
[1693510846253,0.07515982,217.45,217.11,0.25857666]
[1693510846454,0.07515982,217.45,217.12,0.18370268]
[1693510848353,0.07515982,217.44,217.12,0.18370268]
[1693510850355,0.07515982,217.44,217.12,0.25857666]
[1693510850554,0.07515982,217.44,217.13,0.18370268]
[1693510851252,0.07515982,217.43,217.13,0.18370268]
[1693510852552,0.07515982,217.42,217.13,0.18370268]
[1693510853357,0.07515982,217.41,217.13,0.25857666]
[1693510853557,0.07515982,217.41,217.14,0.18370268]
[1693510854255,0.07515982,217.41,217.14,0.25857666]
[1693510854459,0.07515982,217.41,217.15,0.18370268]
[1693510855360,0.07515982,217.4,217.15,0.25857666]
[1693510855661,0.07515982,217.4,217.16,0.18370268]
[1693510856361,0.07515982,217.38,217.17,0.07487398]
[1693510856555,0.07515982,217.38,217.18,0.18370268]
[1693510857761,0.07515982,217.39,217.18,0.25857666]
[1693510857957,0.07515982,217.39,217.19,0.18370268]
[1693510858360,0.07515982,217.39,217.17,0.07487398]
[1693510858562,0.07515982,217.39,217.18,0.18417449]
[1693510860565,0.07515982,217.39,217.18,0.25904847]
[1693510860764,0.07515982,217.39,217.19,0.18417449]
[1693510864561,0.07515982,217.39,217.18,0.25904847]
[1693510864763,0.07515982,217.39,217.19,0.18417449]
[1693510865467,0.07515982,217.4,217.2,0.18417449]
[1693510865664,0.07515982,217.4,217.17,0.07487398]
[1693510865864,0.07515982,217.4,217.18,0.18419366]
[1693510866462,0.07515982,217.4,217.18,0.25906764]
[1693510866664,0.07515982,217.4,217.19,0.18419366]
[1693510867860,0.07515982,217.44,217.22,0.07487398]
[1693510868068,0.07515982,217.46,217.24,0.07487398]
[1693510868266,0.07515982,217.47,217.25,0.25906764]
[1693510868466,0.07515982,217.49,217.26,0.18419366]
[1693510868670,0.07515982,217.49,217.23,0.18419366]
[1693510868864,0.07515982,217.49,217.24,0.18419366]
[1693510869070,0.07515982,217.49,217.23,0.18419366]
[1693510869262,0.07515982,217.49,217.24,0.18419366]
[1693510869463,0.22547946,217.51,217.23,0.18419366]
[1693510869664,0.07515982,217.51,217.24,0.18419366]
[1693510869863,0.07515982,217.51,217.25,0.18419366]
[1693510870064,0.07515982,217.51,217.26,0.18419366]
[1693510870264,0.07515982,217.51,217.22,0.18419366]
[1693510870562,0.07515982,217.52,217.23,0.18419366]
[1693510870765,0.07515982,217.52,217.21,0.18419366]
[1693510871065,0.07515982,217.52,217.22,0.18419366]
[1693510871367,0.07515982,217.52,217.23,0.18419366]
[1693510871662,0.07515982,217.52,217.24,0.18419366]
[1693510871862,0.07515982,217.52,217.19,0.07487398]
[1693510871863,0.07515982,217.52,217.25,0.18419366]
[1693510872068,0.07515982,217.52,217.26,0.18419366]
[1693510872268,0.07515982,217.52,217.19,0.07487398]
[1693510872269,0.07515982,217.52,217.27,0.18419366]
[1693510872465,0.07515982,217.53,217.2,0.18419366]
[1693510872669,0.07515982,217.53,217.21,0.18379811]
[1693510872867,0.07515982,217.54,217.19,0.25867209]
[1693510873070,0.07515982,217.54,217.2,0.18379811]
[1693510873569,0.07515982,217.54,217.19,0.18379811]
[1693510873772,0.07515982,217.54,217.2,0.18379811]
[1693510873969,0.07515982,217.54,217.21,0.18379811]
[1693510874165,0.07515982,217.55,217.22,0.18379811]
[1693510874372,0.07515982,217.55,217.23,0.18379811]
[1693510874571,0.07515982,217.55,217.19,0.18379811]
[1693510874768,0.07515982,217.55,217.2,0.18379811]
[1693510875073,0.07515982,217.55,217.21,0.18379811]
[1693510875274,0.07515982,217.55,217.22,0.18379811]
[1693510875573,0.07515982,217.56,217.23,0.18379811]